Workbook

Sheet Procédure
A1: Bienvenue dans l'outil de mise en œuvre des études de cas
A3: L'objectif de cet outil est de faciliter le travail de chacun.
A4: La procédure d'utilisation est décrite ci-dessous.
A5: Les résultats seront générés automatiquement à partir de la saisie des données brutes dont vous disposez.
A6: N'hésitez pas à revenir vers nous si vous avez des questions ou si vous rencontrez des difficultés. o.lefebvre@id-ong.org (ou j.gaston@id-ong.org et m.legagneux@id-ong.org)
A8: Etapes de travail
A10: 1 | B10: Remplir l'onglet paramètres avec les informations nécessaires. Les données saisies interviennent dans le calcul des résultats. | C10: Onglet "Paramètres"
A11: 2 | B11: Utiliser l'onglet "Indicateurs" pour naviguer parmi les différents indicateurs. Pour chacun le tableau apporte des précisions sur la façon de faire le calcul.
B12: Pour chaque indicateur il est important de bien documenter les hypothèses posées et la méthode de calcul. | C12: Onglet "Indicateurs"
A13: 3 | B13: Les onglets de résultat sont non-modifiables, ils synthétisent les informations fournies sur les coûts et les impacts du projet. | C13: Onglet "Résultat - Ménage"
C14: Onglet "Résultat - Projet"
C15: Onglet "Résultat - Efficience"

Sheet Paramètres
B1: Remplir seulement les cellules en jaune | D1: Retour à la procédure | E1: Onglet suivant
B3: Intitulé | C3: Valeur | D3: Unité / Format | E3: Commentaires
B4: Conversion monnaie locale / dollar | D4: Monnaie locale/ Dollar | E4: Prendre la valeur correspondant au pays d'intervention ici: www.xe.com
B5: Nombre de ménages équipés | D5: N/A | E5: Il s'agit du nombre de ménages equipés avec la technologie diffusée par le projet
B6: Facteur de conversion en arbres non coupés | C6: 150 | D6: kg de biomasse aérienne sèche par arbre
B7: Taux d'actualisation | C7: 0.1 | D7: N/A
B8: Date de début du projet | D8: JJ/MM/AAAA | E8: Cela inclut les études préalables pour estimer les besoins
B9: Date de fin du projet | D9: JJ/MM/AAAA | E9: Si le projet est en cours prendre 31 décembre 2014.
B10: Pays d'intervention
B11: Zone ciblée (Village ou région, bassin d'un fleuve, national, etc.)
B12: Taux de fonctionnement après: | E12: Il s'agit du pourcentage de ménages utilisant régulièrement la technologie aprés X années
B13: 1 année d'utilisation | D13: N/A
B14: 2 années d'utilisation | D14: N/A
B15: 3 années d'utilisation | D15: N/A
B16: 4 années d'utilisation | D16: N/A
B17: 5 années d'utilisation | D17: N/A
B18: 6 années d'utilisation | D18: N/A
B19: 7 années d'utilisation | D19: N/A
B20: 8 années d'utilisation | D20: N/A
B21: 9 années d'utilisation | D21: N/A
B22: 10 années d'utilisation | D22: N/A
B23: Pourcentage des coût initiaux payés par l'utilisateur | D23: N/A | E23: Quel pourcentage du coût "réel" de la technologie est payé par l'utilisateur?
B24: Pourcentage des coûts long terme payés par l'utilisateur | D24: N/A | E24: Quel pourcentage du coût "réel" de la maintenance/SAV de la technologie est payé par l'utilisateur?

Sheet Indicateurs
A2: Pour chaque indicateur, vous pouvez suivre le lien qui vous conduira vers un onglet contenant:
B3: Une fiche descriptive de l'indicateur
B4: Le formulaire de saisie de vos données et de la méthodologie utilisée pour les obtenir | D4: Retour à la procédure
A6: Catégorie | B6: Indicateurs | C6: Remarques/ Compléments
A7: Contexte
A11: Coût | C11: Il est important de dissocier les coûts initiaux de mise en place et les coûts de suivi/maintenance/opération sur le long terme. Si ces deux types d'activités se font simultanément, il faut alors bien les différencier. Pour les coûts initiaux il faut prendre en compte l'ensemble des années pour lesquelles il y a eu une diffusion active de la technologie et les diviser par le nombre de ménages ayant adoptés la technologie. Pour les coûts de suivi/maintenance à long terme prendre la moyenne constatée sur la durée du projet
A16: Impacts | C16: Tous les impacts sont quantifiés au niveau d'un ménage

Sheet 3-Resultat-Ménage
B1: Coût Initial lié à l'installation dans un ménage
A2: Les données sont générées automatiquement à partir des données saisies précédemment (paramètres et fiches indicateurs)
C3: Coût en monnaie locale | D3: Coût en $ international
B4: Construction | C4: ='Coût de production'!B10 -> 0 | D4: =C4/Paramètres!$C$4 -> 
B5: Marketing/ Distribution | C5: ='Coût de marketing distribution'!B9 -> 0 | D5: =C5/Paramètres!$C$4 -> 
B6: Autre | C6: ='Autres coûts initiaux'!B9 -> 0 | D6: =C6/Paramètres!$C$4 -> 
B7: Total | C7: =SUM(C4:C6) -> 0 | D7: =C7/Paramètres!$C$4 -> 
B8: dont payé par bailleur | C8: =C7-C9 -> 0 | D8: =C8/Paramètres!$C$4 -> 
B9: dont payé par utilisateur | C9: =C7*Paramètres!C23 -> 0 | D9: =C9/Paramètres!$C$4 -> 
B11: Cout annuel lie a l'utilisation/maintenance dans un menage
C13: Coût en monnaie locale | D13: Coût en $ international
B14: Maintenance/Opération | C14: ='Coût de maintenance'!B10 -> 0 | D14: =C14/Paramètres!$C$4 -> 
B15: Autre | C15: ='Autres coûts long terme'!B9 -> 0 | D15: =C15/Paramètres!$C$4 -> 
B16: Total | C16: =SUM(C14:C15) -> 0 | D16: =C16/Paramètres!$C$4 -> 
B17: dont payé par bailleur | C17: =C16-C18 -> 0 | D17: =C17/Paramètres!$C$4 -> 
B18: dont payé par utilisateur | C18: =C16*Paramètres!C24 -> 0 | D18: =C18/Paramètres!$C$4 -> 
B21: Impact initial (lie a l'acquisition de la technologie)
A23: Emploi Filière (ETP) | B23: ='Impact Emploi Initial Filiere'!B10 -> 0 | C23: ETP/ménage
A24: Emploi Filière (argent gagné) | B24: ='Impact Emploi Initial Filiere'!B13 -> 0 | C24: monnaie locale/ménage
B26: Impact Annuel par ménage utilisant la technologie
A29: Temps économisé | B29: ='Impact Temps'!B10 -> 0 | C29: heure/an/ménage
A30: Economique | B30: ='Impact Economique'!B10+'Impact Economique (2)'!B10 -> 0 | C30: monnaie locales/année/ménage
A31: Bois économisé | B31: ='Impact Environemental (2)'!B10 -> 0 | C31: kg bois/an /ménage
A32: Arbres | B32: =B31/Paramètres!C6 -> 0 | C32: arbres/an/ménage
A33: CO2 équivalent | B33: ='Impact Environemental'!B10 -> 0 | C33: tCO2e/an/ménage
A34: Santé (DALYs) | B34: =#REF! ->  | C34: DALJ/ménage/an
A35: Santé (morts evités) | B35: =#REF! ->  | C35: morts évitées/menage/an
A36: Emploi Filière (ETP) | B36: ='Impact Emploi Long TermeFiliere'!B10 -> 0 | C36: ETP/an/ménage
A37: Emploi Filière (argent gagné) | B37: ='Impact Emploi Long TermeFiliere'!B13 -> 0 | C37: monnaie locale/an/ménage

Sheet 3-Resultat-Projet
B1: Les données sont générées automatiquement à partir des données saisies précédemment (paramètres et fiches indicateurs)
D2: COUTS | H2: DISCOUNT | J2: IMPACT
D3: Coût Bailleur | E3: Coût Bailleur (actualisé) | F3: Coût utilisateur | G3: Coût utilisateur (actualisé) | H3: Taux actualisation (5%) | I3: Taux utilisation | J3: Temps économisé (heure) | K3: $ économisé | L3: Arbres non coupés | M3: tCO2eq | N3: DALD évités | O3: Morts évitées | P3: $ gagné sur la filiere | Q3: ETP créés sur la filière
B4: 0 | C4: Construction | D4: ='3-Resultat-Ménage'!D8*Paramètres!C5 ->  | E4: =D4*H4 ->  | F4: ='3-Resultat-Ménage'!D9*Paramètres!C5 ->  | G4: =F4*H4 ->  | H4: 1 | P4: ='3-Resultat-Ménage'!$B$24*Paramètres!$C$5/Paramètres!$C$4 ->  | Q4: ='3-Resultat-Ménage'!B23*Paramètres!C5 -> 0
B5: 1 | C5: Annee 1 | D5: ='3-Resultat-Ménage'!$D$17*Paramètres!$C$5 ->  | F5: ='3-Resultat-Ménage'!$D$18*Paramètres!$C$5 ->  | H5: =1/(1+Paramètres!$C$7)^B5 -> 0.9090909091 | I5: =Paramètres!C13 -> 0 | J5: ='3-Resultat-Ménage'!$B$29*Paramètres!$C$5*I5*H5 -> 0 | K5: ='3-Resultat-Ménage'!$B$30/Paramètres!$C$4*Paramètres!$C$5*I5*H5 ->  | L5: ='3-Resultat-Ménage'!$B$32*Paramètres!$C$5*I5*H5 -> 0 | M5: ='3-Resultat-Ménage'!$B$33*Paramètres!$C$5*I5*H5 -> 0 | N5: ='3-Resultat-Ménage'!$B$34*Paramètres!$C$5*I5 ->  | O5: ='3-Resultat-Ménage'!$B$35*Paramètres!$C$5*I5 ->  | P5: ='3-Resultat-Ménage'!$B$37*Paramètres!$C$5*I5*H5/Paramètres!$C$4 ->  | Q5: ='3-Resultat-Ménage'!$B$36*Paramètres!$C$5*I5*H5 -> 0
B6: 2 | C6: Annee 2 | D6: ='3-Resultat-Ménage'!$D$17*Paramètres!$C$5 ->  | F6: ='3-Resultat-Ménage'!$D$18*Paramètres!$C$5 ->  | H6: =1/(1+Paramètres!$C$7)^B6 -> 0.826446281 | I6: =Paramètres!C14 -> 0 | J6: ='3-Resultat-Ménage'!$B$29*Paramètres!$C$5*I6*H6 -> 0 | K6: ='3-Resultat-Ménage'!$B$30/Paramètres!$C$4*Paramètres!$C$5*I6*H6 ->  | L6: ='3-Resultat-Ménage'!$B$32*Paramètres!$C$5*I6*H6 -> 0 | M6: ='3-Resultat-Ménage'!$B$33*Paramètres!$C$5*I6*H6 -> 0 | N6: ='3-Resultat-Ménage'!$B$34*Paramètres!$C$5*I6 ->  | O6: ='3-Resultat-Ménage'!$B$35*Paramètres!$C$5*I6 ->  | P6: ='3-Resultat-Ménage'!$B$37*Paramètres!$C$5*I6*H6/Paramètres!$C$4 ->  | Q6: ='3-Resultat-Ménage'!$B$36*Paramètres!$C$5*I6*H6 -> 0
B7: 3 | C7: Annee 3 | D7: ='3-Resultat-Ménage'!$D$17*Paramètres!$C$5 ->  | F7: ='3-Resultat-Ménage'!$D$18*Paramètres!$C$5 ->  | H7: =1/(1+Paramètres!$C$7)^B7 -> 0.7513148009 | I7: =Paramètres!C15 -> 0 | J7: ='3-Resultat-Ménage'!$B$29*Paramètres!$C$5*I7*H7 -> 0 | K7: ='3-Resultat-Ménage'!$B$30/Paramètres!$C$4*Paramètres!$C$5*I7*H7 ->  | L7: ='3-Resultat-Ménage'!$B$32*Paramètres!$C$5*I7*H7 -> 0 | M7: ='3-Resultat-Ménage'!$B$33*Paramètres!$C$5*I7*H7 -> 0 | N7: ='3-Resultat-Ménage'!$B$34*Paramètres!$C$5*I7 ->  | O7: ='3-Resultat-Ménage'!$B$35*Paramètres!$C$5*I7 ->  | P7: ='3-Resultat-Ménage'!$B$37*Paramètres!$C$5*I7*H7/Paramètres!$C$4 ->  | Q7: ='3-Resultat-Ménage'!$B$36*Paramètres!$C$5*I7*H7 -> 0
B8: 4 | C8: Annee 4 | D8: ='3-Resultat-Ménage'!$D$17*Paramètres!$C$5 ->  | F8: ='3-Resultat-Ménage'!$D$18*Paramètres!$C$5 ->  | H8: =1/(1+Paramètres!$C$7)^B8 -> 0.6830134554 | I8: =Paramètres!C16 -> 0 | J8: ='3-Resultat-Ménage'!$B$29*Paramètres!$C$5*I8*H8 -> 0 | K8: ='3-Resultat-Ménage'!$B$30/Paramètres!$C$4*Paramètres!$C$5*I8*H8 ->  | L8: ='3-Resultat-Ménage'!$B$32*Paramètres!$C$5*I8*H8 -> 0 | M8: ='3-Resultat-Ménage'!$B$33*Paramètres!$C$5*I8*H8 -> 0 | N8: ='3-Resultat-Ménage'!$B$34*Paramètres!$C$5*I8 ->  | O8: ='3-Resultat-Ménage'!$B$35*Paramètres!$C$5*I8 ->  | P8: ='3-Resultat-Ménage'!$B$37*Paramètres!$C$5*I8*H8/Paramètres!$C$4 ->  | Q8: ='3-Resultat-Ménage'!$B$36*Paramètres!$C$5*I8*H8 -> 0
B9: 5 | C9: Annee 5 | D9: ='3-Resultat-Ménage'!$D$17*Paramètres!$C$5 ->  | F9: ='3-Resultat-Ménage'!$D$18*Paramètres!$C$5 ->  | H9: =1/(1+Paramètres!$C$7)^B9 -> 0.6209213231 | I9: =Paramètres!C17 -> 0 | J9: ='3-Resultat-Ménage'!$B$29*Paramètres!$C$5*I9*H9 -> 0 | K9: ='3-Resultat-Ménage'!$B$30/Paramètres!$C$4*Paramètres!$C$5*I9*H9 ->  | L9: ='3-Resultat-Ménage'!$B$32*Paramètres!$C$5*I9*H9 -> 0 | M9: ='3-Resultat-Ménage'!$B$33*Paramètres!$C$5*I9*H9 -> 0 | N9: ='3-Resultat-Ménage'!$B$34*Paramètres!$C$5*I9 ->  | O9: ='3-Resultat-Ménage'!$B$35*Paramètres!$C$5*I9 ->  | P9: ='3-Resultat-Ménage'!$B$37*Paramètres!$C$5*I9*H9/Paramètres!$C$4 ->  | Q9: ='3-Resultat-Ménage'!$B$36*Paramètres!$C$5*I9*H9 -> 0
B10: 6 | C10: Annee 6 | D10: ='3-Resultat-Ménage'!$D$17*Paramètres!$C$5 ->  | F10: ='3-Resultat-Ménage'!$D$18*Paramètres!$C$5 ->  | H10: =1/(1+Paramètres!$C$7)^B10 -> 0.5644739301 | I10: =Paramètres!C18 -> 0 | J10: ='3-Resultat-Ménage'!$B$29*Paramètres!$C$5*I10*H10 -> 0 | K10: ='3-Resultat-Ménage'!$B$30/Paramètres!$C$4*Paramètres!$C$5*I10*H10 ->  | L10: ='3-Resultat-Ménage'!$B$32*Paramètres!$C$5*I10*H10 -> 0 | M10: ='3-Resultat-Ménage'!$B$33*Paramètres!$C$5*I10*H10 -> 0 | N10: ='3-Resultat-Ménage'!$B$34*Paramètres!$C$5*I10 ->  | O10: ='3-Resultat-Ménage'!$B$35*Paramètres!$C$5*I10 ->  | P10: ='3-Resultat-Ménage'!$B$37*Paramètres!$C$5*I10*H10/Paramètres!$C$4 ->  | Q10: ='3-Resultat-Ménage'!$B$36*Paramètres!$C$5*I10*H10 -> 0
B11: 7 | C11: Annee 7 | D11: ='3-Resultat-Ménage'!$D$17*Paramètres!$C$5 ->  | F11: ='3-Resultat-Ménage'!$D$18*Paramètres!$C$5 ->  | H11: =1/(1+Paramètres!$C$7)^B11 -> 0.5131581182 | I11: =Paramètres!C19 -> 0 | J11: ='3-Resultat-Ménage'!$B$29*Paramètres!$C$5*I11*H11 -> 0 | K11: ='3-Resultat-Ménage'!$B$30/Paramètres!$C$4*Paramètres!$C$5*I11*H11 ->  | L11: ='3-Resultat-Ménage'!$B$32*Paramètres!$C$5*I11*H11 -> 0 | M11: ='3-Resultat-Ménage'!$B$33*Paramètres!$C$5*I11*H11 -> 0 | N11: ='3-Resultat-Ménage'!$B$34*Paramètres!$C$5*I11 ->  | O11: ='3-Resultat-Ménage'!$B$35*Paramètres!$C$5*I11 ->  | P11: ='3-Resultat-Ménage'!$B$37*Paramètres!$C$5*I11*H11/Paramètres!$C$4 ->  | Q11: ='3-Resultat-Ménage'!$B$36*Paramètres!$C$5*I11*H11 -> 0
B12: 8 | C12: Annee 8 | D12: ='3-Resultat-Ménage'!$D$17*Paramètres!$C$5 ->  | F12: ='3-Resultat-Ménage'!$D$18*Paramètres!$C$5 ->  | H12: =1/(1+Paramètres!$C$7)^B12 -> 0.4665073802 | I12: =Paramètres!C20 -> 0 | J12: ='3-Resultat-Ménage'!$B$29*Paramètres!$C$5*I12*H12 -> 0 | K12: ='3-Resultat-Ménage'!$B$30/Paramètres!$C$4*Paramètres!$C$5*I12*H12 ->  | L12: ='3-Resultat-Ménage'!$B$32*Paramètres!$C$5*I12*H12 -> 0 | M12: ='3-Resultat-Ménage'!$B$33*Paramètres!$C$5*I12*H12 -> 0 | N12: ='3-Resultat-Ménage'!$B$34*Paramètres!$C$5*I12 ->  | O12: ='3-Resultat-Ménage'!$B$35*Paramètres!$C$5*I12 ->  | P12: ='3-Resultat-Ménage'!$B$37*Paramètres!$C$5*I12*H12/Paramètres!$C$4 ->  | Q12: ='3-Resultat-Ménage'!$B$36*Paramètres!$C$5*I12*H12 -> 0
B13: 9 | C13: Annee 9 | D13: ='3-Resultat-Ménage'!$D$17*Paramètres!$C$5 ->  | F13: ='3-Resultat-Ménage'!$D$18*Paramètres!$C$5 ->  | H13: =1/(1+Paramètres!$C$7)^B13 -> 0.4240976184 | I13: =Paramètres!C21 -> 0 | J13: ='3-Resultat-Ménage'!$B$29*Paramètres!$C$5*I13*H13 -> 0 | K13: ='3-Resultat-Ménage'!$B$30/Paramètres!$C$4*Paramètres!$C$5*I13*H13 ->  | L13: ='3-Resultat-Ménage'!$B$32*Paramètres!$C$5*I13*H13 -> 0 | M13: ='3-Resultat-Ménage'!$B$33*Paramètres!$C$5*I13*H13 -> 0 | N13: ='3-Resultat-Ménage'!$B$34*Paramètres!$C$5*I13 ->  | O13: ='3-Resultat-Ménage'!$B$35*Paramètres!$C$5*I13 ->  | P13: ='3-Resultat-Ménage'!$B$37*Paramètres!$C$5*I13*H13/Paramètres!$C$4 ->  | Q13: ='3-Resultat-Ménage'!$B$36*Paramètres!$C$5*I13*H13 -> 0
B14: 10 | C14: Annee 10 | D14: ='3-Resultat-Ménage'!$D$17*Paramètres!$C$5 ->  | F14: ='3-Resultat-Ménage'!$D$18*Paramètres!$C$5 ->  | H14: =1/(1+Paramètres!$C$7)^B14 -> 0.3855432894 | I14: =Paramètres!C22 -> 0 | J14: ='3-Resultat-Ménage'!$B$29*Paramètres!$C$5*I14*H14 -> 0 | K14: ='3-Resultat-Ménage'!$B$30/Paramètres!$C$4*Paramètres!$C$5*I14*H14 ->  | L14: ='3-Resultat-Ménage'!$B$32*Paramètres!$C$5*I14*H14 -> 0 | M14: ='3-Resultat-Ménage'!$B$33*Paramètres!$C$5*I14*H14 -> 0 | N14: ='3-Resultat-Ménage'!$B$34*Paramètres!$C$5*I14 ->  | O14: ='3-Resultat-Ménage'!$B$35*Paramètres!$C$5*I14 ->  | P14: ='3-Resultat-Ménage'!$B$37*Paramètres!$C$5*I14*H14/Paramètres!$C$4 ->  | Q14: ='3-Resultat-Ménage'!$B$36*Paramètres!$C$5*I14*H14 -> 0
B15: Valeur Présente nette | E15: =SUM(E4:E14) ->  | G15: =SUM(G4:G14) ->  | J15: =SUM(J4:J14) -> 0 | L15: 0 | M15: 0 | Q15: 0

Sheet 3-Resultat-Efficience
A1: Les données sont générées automatiquement à partir des données saisies précédemment (paramètres et fiches indicateurs)
D2: Temps économisé (heure) | E2: $ économisé/ gagné par le ménage | F2: Arbres non coupés | G2: tCO2eq | H2: DALD | I2: Morts évitées | J2: $ gagné par la filiere | K2: ETP générés sur la filière
A3: Impact pour 10$ dépensés par le bailleur | D3: ='3-Resultat-Projet'!J15/'3-Resultat-Projet'!$E$15*10 ->  | E3: ='3-Resultat-Projet'!K15/'3-Resultat-Projet'!$E$15*10 ->  | F3: ='3-Resultat-Projet'!L15/'3-Resultat-Projet'!$E$15*10 ->  | G3: ='3-Resultat-Projet'!M15/'3-Resultat-Projet'!$E$15*10 ->  | H3: ='3-Resultat-Projet'!N15/'3-Resultat-Projet'!$E$15*10 ->  | I3: ='3-Resultat-Projet'!O15/'3-Resultat-Projet'!$E$15*10 ->  | J3: ='3-Resultat-Projet'!P15/'3-Resultat-Projet'!$E$15*10 -> 
A4: Impact pour 10$ depensés par l'utilisateur | D4: ='3-Resultat-Projet'!J15/'3-Resultat-Projet'!$G15*10 ->  | E4: ='3-Resultat-Projet'!K15/'3-Resultat-Projet'!$G15*10 ->  | H4: ='3-Resultat-Projet'!N15/'3-Resultat-Projet'!$G15*10 ->  | I4: ='3-Resultat-Projet'!O15/'3-Resultat-Projet'!$G15*10 -> 

Sheet Accés a l'energie (hidden)
A1: Indicateur | B1: Accés a l'energie: pourcentage des familles ayant acces a l'electricité ou ades combustibles "non-solides".
A2: Catégorie | B2: Contexte
A3: Unité | B3: % de menage ruraux/urbain ou nationaux en fonction de la zone d'intervention du projet.
A4: Source | B4: Les donnée provienent de la derniere version du "Global Tracking Framework". A la date de publication de l'etude, il s'agit de la version 2015: https://sustainabledevelopment.un.org/content/documents/13139Global%20Tracking%20Framework_World%20Bank.pdf
A5: Mode de calcul | B5: Ces statistiques sont basé sur des enquetes nationales.
A6: Quelle interprétation ? Quelles limites à l'interprétation? | B6: la definition de l'acces a l'energie est tres binaire dans ces enquetes. Et ne reflète pas bien la qualité de l'acces. Une nouvelle version de cet outil de suivi est en train d'etre developpé pour intégrer cette aspect.
A7: Commentaires
A13: % des menages ayant acces à l'électricité.
A14: % des menages ayant acces à des combustible non solide.

Sheet Situation Economique (hidden)
A1: Indicateur | B1: PIB/habitant
A2: Catégorie | B2: Contexte - Situation économique du groupe ciblé
A3: Unité | B3: $/ménage
A4: Source | B4: Banque Mondiale: http://data.worldbank.org/indicator/NY.GDP.PCAP.CD
A5: Mode de calcul | B5: N/A
A6: Quelle interprétation ? Quelles limites à l'interprétation? | B6: Cet indicateur donne une idée du revenu moyen d'un ménage. Il permet de comparer les differentes zones d'intervention entre elles et contextualiser le coût d'accés à l'énergie.
A7: Commentaires
A8: Saisissez les données et les détails explicatifs dans le tableau ci-dessous
A10: Valeur

Sheet Accessibilté (hidden)
A2: Indicateurs | B2: Distance en heure de transport en commun à une ville de plus de 1,000,000 habitants Distance en heure de transport en commun à une ville de plus de 100,000 habitants
A3: Catégorie | B3: Contexte, Accessibilité
A4: Unité | B4: Heure
A5: Source | B5: Externe, temps typique de transport en commun.
A6: Mode de calcul | B6: Estimation faite par quelqu'un connaissant bien la zone. Il s'agit du temps typique nécessaire pour rejoindre la zone cible en transport en commun
A7: Quelle interprétation ? Quelles limites à l'interprétation? | B7: Cet indicateur tente de mesurer l'enclavement de la zone ciblée.
A8: Commentaires | B8: Si plusieurs options sont possibles prendre la plus rapide.
A9: Saisissez les données et les détails explicatifs dans le tableau ci-dessous
A12: Valeur "Temps de transport vers une ville de plus d'un million d'habitant"
A13: Détails permettant de comprendre comment la valeur est obtenue
A14: Difficultés rencontrées, commentaires
A15: Valeur "Temps de transport vers une ville de plus de cent mille d'habitant"
A16: Détails permettant de comprendre comment la valeur est obtenue
A17: Difficultés rencontrées, commentaires

Sheet Maturité de la filiere (hidden)
A1: Indicateur | B1: Taux de pénétration de technologie similaire
A2: Catégorie | B2: Contexte - Maturité de la filière
A3: Unité | B3: échelle spécialement cré à l'ocasion
A4: Source | B4: Interne, Cf onglet sur le degré de développement de la filière
A5: Mode de calcul | B5: Il s'agit de définir un état pour la filière avant le projet et au monent de l'évaluation. Idéalement, soliciter un interlocuteur qui connait bien la situation initale et la situation actuelle. Celui-ci devra évaluer le degré de développement de la filière nationale et définir un adjectif pour chaque situation.Voir ci dessou spour plus de détails.
A6: Quelle interprétation ? Quelles limites à l'interprétation? | B6: L'indicateur permet d'estimer un degré de developpment de la filière dans laquelle le projet vient s'inscrire. L'utilisation d'adjectif doit permettre une lecture rapide et un comparaison simplifié avec d'autres projets.
A7: Commentaires | B7: Voir ci dessou spour plus de détails.
A8: Saisissez les données et les détails explicatifs dans le tableau ci-dessous
A10: degré de développement de la filière | B10: Expliquez pourquoi vous avez choisi ce stade pour la filière sur laquelle vous travaillez. Apportez quelques éléments de description de l'état de la filière à chacun des deux moments. 5 lignes environ.
A11: etat de la filiere avant le debut de l'intervention: inexistante, émergente, structuration, maturation ?
A12: état de la filiere aujourd'hui: inexistante, émergente, structuration, maturation ?
A13: Difficultés rencontrées, commentaires
A26: Phase | B26: Questionnements relatifs aux caractéristiques | C26: Descriptif
A27: Inexistante | B27: Existe-t-il d'autres produits et d'autres technologies répondant aux mêmes besoins? Combien d'autres acteurs travaillent à répondre aux mêmes besoins? Quel volume de ce (ou ces) produit a été mis sur le marché ? | C27: Filière inexistante, pas de marché et pas de technologie permettant de répondre à ce besoin
A28: Emergente | C28: Filière naissante, en phase d'émergence. La technologie est arrivée sur le marché depuis peu de temps (quelques années), elle est encore mal connue des utilisateurs. Les acteurs sont capables de la fabriquer et de la diffuser mais il n'existe pas de dynamique autonome entre eux. Certains sont encore en phase d'apprentissage. Et certaines fonctions sont encore occupées par des acteurs ONG ou étatiques...
A29: Structuration | C29: Filière jeune mais en structuration. La technologie est connue sur le marché. Les acteurs sont déjà bien formés mais les dynamiques entre eux sont encore sous supervision/subvention de la part du projet ou d'autres acteurs institutionels (état, entreprises ou autres associations). Certaines fonctions dans la filière peuvent etre encore subventionées. Des concurrents apparaissent (plusieurs acteurs sur technologies proches). Le projet peut améliorer une technologie moins bonne déjà présente sur le marché.
A30: Maturation | C30: Le marché répond de manière quasi autonome aux besoins de la population. La technologie (et les différentes produits / gammes de produits) est bien connue des utilisateurs et les acteurs sont qualifiés dans leur domaine de compétences. Il existe des dyanmiques autonomes entre ces acteurs, autrement dit, la filière s'organise elle-même en suivant les règles du marche. Le rôle d'acteurs annexes (institutions et ONG) se limite à des appuis ponctuels.

Sheet Coût de production (hidden)
A1: Indicateur | B1: Coûts de production/installation de la technologie dans un ménage
A2: Catégorie | B2: Coût
A3: Unité | B3: En monnaie locale/ménage
A4: Source | B4: Budget du projet
A5: Mode de calcul | B5: Coûts de production incluant : les matériaux, la main d'œuvre, le contrôle qualité et le transport.
A6: Quelle interprétation ? Quelles limites à l'interprétation? | B6: _
A7: Commentaires
A8: Saisissez les données et les détails explicatifs dans le tableau ci-dessous
A10: Valeur
A11: Détails permettant de comprendre comment la valeur est obtenue
A12: Difficultés rencontrées, commentaires

Sheet Coût de marketing distribution (hidden)
A1: Indicateur | B1: Coûts de marketing et de distribution
A2: Catégorie | B2: Coût
A3: Unité | B3: En monnaie locale/ménage
A4: Source | B4: Budget du projet
A5: Mode de calcul | B5: Ensemble des coûts liés aux tâches de marketing et de distribution.
A6: Quelle interprétation ? Quelles limites à l'interprétation? | B6: _
A7: Commentaires | B7: _
A8: Saisissez les données et les détails explicatifs dans le tableau ci-dessous
A9: Valeur
A10: Détails permettant de comprendre comment la valeur est obtenue
A11: Difficultés rencontrées, commentaires

Sheet Autres coûts initiaux (hidden)
A1: Indicateur | B1: Autres Coûts initiaux
A2: Catégorie | B2: Coût
A3: Unité | B3: En monnaie locale/ménage
A4: Source | B4: Budget du projet
A5: Mode de calcul | B5: Postes du budget non inclus dans les 2 premières catégories de coûts et relevant de coûts affectables au lancement du projet
A6: Quelle interprétation ? Quelles limites à l'interprétation
A7: Commentaires | B7: Comprend tous les coûts non inclus dans les premières catégories
A8: Saisissez les données et les détails explicatifs dans le tableau ci-dessous
A9: Valeur
A10: Détails permettant de comprendre comment la valeur est obtenue
A11: Difficultés rencontrées, commentaires

Sheet Coût de maintenance (hidden)
A1: Indicateur | B1: Coûts annuels de maintenance et de suivi
A2: Catégorie | B2: Coût
A3: Unité | B3: En monnaie locale/ménage
A4: Source | B4: Budget du projet
A5: Mode de calcul | B5: Rapport entre ensemble des coûts de maintenance à long terme et la durée du projet (10 ans)
A6: Quelle interprétation ? Quelles limites à l'interprétation? | B6: _
A7: Commentaires | B7: Coûts annuels de maintenance et de suivi après adoption de la technologie par l'utilisateur
A8: Saisissez les données et les détails explicatifs dans le tableau ci-dessous
A10: Valeur
A11: Détails permettant de comprendre comment la valeur est obtenue
A12: Difficultés rencontrées, commentaires

Sheet Autres coûts long terme (hidden)
A1: Indicateur | B1: Autres Coûts - long terme
A2: Catégorie | B2: Coût
A3: Unité | B3: En monnaie locale/ménage
A4: Source | B4: Budget du projet
A5: Mode de calcul | B5: Postes du budget non inclus dans les 4 premières catégories de coûts (production, marketing/ distribution, initiaux et maintenance + prix public de la technologie.
A6: Quelle interprétation ? Quelles limites à l'interprétation
A7: Commentaires | B7: Comprend tous les coûts non inclus dans les premières catégories
A8: Saisissez les données et les détails explicatifs dans le tableau ci-dessous
A9: Valeur
A10: Détails permettant de comprendre comment la valeur est obtenue
A11: Difficultés rencontrées, commentaires

Sheet Impact Economique (hidden)
A1: Indicateur | B1: Argent économisé sur l'achat de combustible
A2: Catégorie | B2: Impact
A3: Unité | B3: En monnaie locale/an/ménage
A4: Source | B4: Idéalement: interne Si aucune donnée interne n'est disponible: utiliser des données externes
A5: Mode de calcul | B5: Différence entre situation avant et aprés l'intervention. Multiplier les quantités moyennes annuelles de combustible utilisées par le coût d'une unité de combustible pour la situation avant et après l'intervention. = [Qtté moyenne de combustible utilisée x Prix d'une unité de combustible (avant intervention)] - [Qtté moyenne de combustible utilisée x Prix d'une unité de combustible (après intervention)]
A6: Quelle interprétation ? Quelles limites à l'interprétation? | B6: N/A
A7: Commentaires | B7: Prendre en compte de possibles variations saisonnières si cela est pertinent. Dans le cas d'un changement de combustible, le cout de production du nouveau combustible est a inclure dans les couts du projet. Il s'agit ici de comparer les cout d'axchat du combustible traditionnel.
A8: Saisissez les données et les détails explicatifs dans le tableau ci-dessous
A10: Valeur
A11: Détails permettant de comprendre comment la valeur est obtenue
A12: Difficultés rencontrées, commentaires

Sheet Impact Economique (2) (hidden)
A1: Indicateur | B1: Argent gagné grâce à l'utilisation de la technologie
A2: Catégorie | B2: Impact
A3: Unité | B3: En monnaie locale/an/ménage
A4: Source | B4: Idéalement: interne Si aucune donnée interne n'est disponible: utiliser des données externes
A5: Mode de calcul | B5: Différence entre situation avant et aprés l'intervention. Il s'agit de comptabiliser le profit (revenus moins dépenses) généré par des activités rendues possibles grâce à l'intervention. Alternativement si cela est trop difficile un calcul du nombre d'emploi créés en Equivalent Temps Plein pourrait convenir
A6: Quelle interprétation ? Quelles limites à l'interprétation? | B6: N/A
A7: Commentaires | B7: Prendre en compte de possibles variations saisonnières si cela est pertinent
A8: Saisissez les données et les détails explicatifs dans le tableau ci-dessous
A10: Valeur
A11: Détails permettant de comprendre comment la valeur est obtenue
A12: Difficultés rencontrées, commentaires

Sheet Impact Temps (hidden)
A1: Indicateur | B1: Temps economisé par l'utilisateur grâce à l'intervention.
A2: Catégorie | B2: Impact
A3: Unité | B3: heure/an/ménage
A4: Source | B4: Idéalement: interne Si aucune donnée interne n'est disponible: utiliser des données externes
A5: Mode de calcul | B5: Différence entre situation avant et aprés l'intervention. = ∑[Temps de cuisine, collecte/achat de combustible, préparation du combustible (avant projet)] - ∑[Temps de cuisine, collecte/achat de combustible, préparation du combustible (après projet)]
A6: Quelle interprétation ? Quelles limites à l'interprétation?
A7: Commentaires
A8: Saisissez les données et les détails explicatifs dans le tableau ci-dessous
A10: Valeur
A11: Détails permettant de comprendre comment la valeur est obtenue
A12: Difficultés rencontrées, commentaires

Sheet Impact Environemental (hidden)
A1: Indicateur | B1: CO2 équivalent évités grâce à l'intervention
A2: Catégorie | B2: Impact
A3: Unité | B3: tCO2e/an/ménage
A4: Source | B4: Idéalement: interne Si aucune donnée interne n'est disponible: utiliser des données externes
A5: Mode de calcul | B5: Calcul basé sur la réduction de l'usage de combustible avant et après l'intervention - prise en compte d'émission de CO2, CH4 et NO2
A6: Quelle interprétation ? Quelles limites à l'interprétation?
A7: Commentaires | B7: Utilisation d'une méthodologie équivalente à TPDDTEC (Technologies and Practices to Displace Decentralized Thermal Energy Consumption) développée par Gold Standard.
A8: Saisissez les données et les détails explicatifs dans le tableau ci-dessous
A10: Valeur
A11: Détails permettant de comprendre comment la valeur est obtenue
A12: Difficultés rencontrées, commentaires

Sheet Impact Environemental (2) (hidden)
A1: Indicateur | B1: Economies de bois permises grâce à l'intervention
A2: Catégorie | B2: Impact
A3: Unité | B3: kg de bois sec/an/ménage
A4: Source | B4: Idéalement: interne Si aucune donnée interne n'est disponible: utiliser des données externes
A5: Mode de calcul | B5: Calcul basé sur la réduction de l'usage de combustible avant et après l'intervention
A6: Quelle interprétation ? Quelles limites à l'interprétation?
A7: Commentaires
A8: Saisissez les données et les détails explicatifs dans le tableau ci-dessous
A10: Valeur
A11: Détails permettant de comprendre comment la valeur est obtenue
A12: Difficultés rencontrées, commentaires

Sheet Impact Emploi Initial Filiere (hidden)
A1: Indicateur | B1: Nombre d'emplois initiaux (Equivalent Temps Plein) générés par la filière. Revenus associés à ces emplois
A2: Catégorie | B2: Impact
A3: Unité | B3: Année de travail Equivalent Temps Plein/ménage Monnaie local/ménage
A4: Source | B4: Idéalement: interne Si aucune donnée interne n'est disponible: utiliser des données externes
A5: Mode de calcul | B5: Il s'agit des emplois générés par les activités conduisant à l'adoption/installation de la technologie dans un ménage (construction/diffusion/marketing/....) Evaluer le temps de travail en heures puis diviser par 1600 pour obtenir la valeur en ETP Multiplier par le salaire horaire pour obtenir les revenus associés
A6: Quelle interprétation ? Quelles limites à l'interprétation
A7: Commentaires | B7: une année ETP correspond a 1600 heures/an Cet indicateur n'inclut pas les emplois générés au niveau du ménage grâce à l'utilsation de la technologie. Prendre en compte les emploi generé localement sur la zone d'intervention.
A8: Saisissez les données et les détails explicatifs dans le tableau ci-dessous
A10: Valeur de "Nombre d'emploi initiaux"
A11: Détails permettant de comprendre comment la valeur est obtenue
A12: Difficultées rencontrées, commentaires
A13: Valeur de "Revenu associé a ces emploi"
A14: Détails permettant de comprendre comment la valeur est obtenue
A15: Difficultées rencontrées, commentaires

Sheet Impact Emploi Long TermeFiliere (hidden)
A1: Indicateur | B1: Nombre d'emplois (Equivalent Temps Plein) générés par la filière. Revenus associés à ces emplois
A2: Catégorie | B2: Impact
A3: Unité | B3: Année de travail Equivalent Temps Plein/an/ménage Monnaie locale/an/ménage
A4: Source | B4: Idéalement: interne Si aucune donnée interne n'est disponible: utiliser des données externes
A5: Mode de calcul | B5: Il s'agit des emplois générés par les activités liés au suivi / service apres vente /maintenance lors de l'utilisation de la technologie Evaluer le temps de travail en heure puis diviser par 1600 pour obtenir la valeur en ETP Multiplier par le salaire horaire pour obtenir les revenus associés
A6: Quelle interprétation ? Quelles limites à l'interprétation
A7: Commentaires | B7: une année ETP correspond a 1600 heures/an Cet indicateur n'inclut pas les emplois générés au niveau du ménage grâce à l'utilisation de la technologie. Prendre en compte les emploi generé localement sur la zone d'intervention.
A8: Saisissez les données et les détails explicatifs dans le tableau ci-dessous
A10: Valeur "Annee de travail en ETP"
A11: Détails permettant de comprendre comment la valeur est obtenue
A12: Difficultés rencontrées, commentaires
A13: Valeur "revenu associé a ces emploi"
A14: Détails permettant de comprendre comment la valeur est obtenue
A15: Difficultés rencontrées, commentaires
